Cogmind - Beta 10.2 @@@ ROGUE MODE // 2021.02.08 @ 15:47:16 Player: aperiodic Result: Destroyed by S-43 Plague with Heavy Machine Gun Performance ------------- Evolutions (8) 4000 Regions Visited (29) 5800 Robots Destroyed (177) 885 Value Destroyed (4874) 4874 Prototype IDs (134) 2680 Alien Tech Used (1) 200 Bonus (2806) 2806 TOTAL SCORE: 21245 Bonus ------- High Alert Combat Kills 153 Follower Combat Kills 351 Aligned with FarCom 300 Met Data Miner 300 Destroyed Z-Imprinter 1000 Met Warlord at Base 500 MAIN.C Attacked Warlord 500 Friendly Fire -298 Cogmind --------- Core Integrity 0/1450 Matter 195/300 Energy 99/100 System Corruption 0% Temperature Cool (0) Movement Core (50) Location -2/Research Parts ------- > --- POWER (2) -------- (None) > --- PROPULSION (4) --- (None) > --- UTILITY (16) ----- Experimental Melee Analysis Suite Experimental Armor Integrity Analyzer Advanced Hacking Suite > --- WEAPON (2) ------- (None) > --- INVENTORY (4) ---- Particle Reactor Advanced Power Amplifier Nanoactuators Advanced Reaction Control System Peak State ------------ > --- POWER ------------ Vortex Chain Reactor > --- PROPULSION ------- Improved Diametric Drive Improved Diametric Drive Impulse Thruster Array > --- UTILITY ---------- Large Storage Unit Inertial Stasis Machine Experimental Signal Interpreter Experimental Melee Analysis Suite Experimental Armor Integrity Analyzer Experimental Phase Shifter Experimental Utility Shielding Advanced Hacking Suite Advanced Hacking Suite Advanced Hacking Suite Advanced Hacking Suite Ghost Barrier > --- WEAPON ----------- Mini Smartbomb Launcher Nanosword > --- INVENTORY -------- Improved Energy Well Zionite Metafield Generator Experimental Sensor Array Nanoactuators Advanced Reaction Control System Light Regenerative Plating System Purifier Matter Neutralizer [Rating: 158] Favorites ----------- Power Ion Engine Engine Ion Engine Power Core Micro Fission Core Reactor Zionite Light DM Reactor Propulsion Light Treads Treads Light Treads Wheel Wheel Hover Unit Improved Gyrokinetic Inverter Flight Unit Improved VTOL Module Utility Advanced Hacking Suite Device Experimental Sensor Array Storage Medium Storage Unit Processor Experimental Signal Interpreter Hackware Advanced Hacking Suite Protection Improved Medium Armor Plating Weapon Light Cannon Energy Gun Improved Medium Laser Energy Cannon Heavy Ion Cannon Ballistic Gun Enhanced Autogun Ballistic Cannon Light Cannon Launcher Mini Smartbomb Launcher Special Weapon Improved Remote Datajack Slashing Weapon Longsword +1 Piercing Weapon Kinetic Spear Special Melee Weapon Advanced Datajack Build | -11 -10 -10 -10 -9 -8 -7 -7 -7 -7 -7 -6 -6 -6 -6 -6 -5 -5 -5 -5 -5 -5 -5 -4 -4 -4 -4 -4 -3 -2 ------- Run | Scr Mat Min Exi Min Mat Fac Low Low Zio Dee Pro Fac Low Low Dat Pro Fac Was Fac Upp Upp War Pro Fac Was Fac Ext Res Res Slots Evolved 16 | . . . . . 4 2 . . . . . 2 . . . . 2 . . . . . . 2 . . . 2 2 Power . | . . . . . . . . . . . . . . . . . . . . . . . . . . . . . . Propulsion 2 | . . . . . 1 . . . . . . 1 . . . . . . . . . . . . . . . . . Utility 14 | . . . . . 3 2 . . . . . 1 . . . . 2 . . . . . . 2 . . . 2 2 Weapon . | . . . . . . . . . . . . . . . . . . . . . . . . . . . . . . Parts Attached 380 | 9 29 6 3 7 48 40 2 12 24 15 1 24 3 5 5 3 23 . 54 . . 13 . 13 1 4 20 7 9 Power 30 | 1 . . . 1 2 3 . 1 7 3 . . . . . . . . 7 . . 3 . 1 . . . . 1 Engine 8 | 1 . . . 1 . . . 1 4 1 . . . . . . . . . . . . . . . . . . . Core 17 | . . . . . 2 3 . . 3 . . . . . . . . . 7 . . 2 . . . . . . . Reactor 5 | . . . . . . . . . . 2 . . . . . . . . . . . 1 . 1 . . . . 1 Propulsion 62 | 3 12 . 2 2 12 8 . . 4 5 . 4 . . . . 2 . 2 . . 3 . . . . . . 3 Treads 25 | . 8 . . 2 11 4 . . . . . . . . . . . . . . . . . . . . . . . Leg . | . . . . . . . . . . . . . . . . . . . . . . . . . . . . . . Wheel 9 | 3 4 . 2 . . . . . . . . . . . . . . . . . . . . . . . . . . Hover 4 | . . . . . . . . . . 2 . . . . . . . . . . . . . . . . . . 2 Flight 24 | . . . . . 1 4 . . 4 3 . 4 . . . . 2 . 2 . . 3 . . . . . . 1 Utility 153 | 2 4 . 1 . 6 17 . 1 10 7 1 13 2 2 4 3 10 . 24 . . 4 . 9 1 4 18 6 4 Device 59 | . . . . . . 3 . 1 1 2 . 3 1 1 1 2 4 . 14 . . 3 . 2 1 2 14 2 2 Storage 21 | 2 4 . 1 . . 3 . . 2 1 . 2 1 . . . . . . . . . . 1 . 1 . 3 . Processor 12 | . . . . . 2 1 . . 5 . . 1 . . . . 1 . . . . . . . . . 2 . . Hackware 20 | . . . . . 1 5 . . . 1 1 4 . . . . 2 . . . . . . 5 . . . . 1 Protection 41 | . . . . . 3 5 . . 2 3 . 3 . 1 3 1 3 . 10 . . 1 . 1 . 1 2 1 1 Artifact . | . . . . . . . . . . . . . . . . . . . . . . . . . . . . . . Weapon 135 | 3 13 6 . 4 28 12 2 10 3 . . 7 1 3 1 . 11 . 21 . . 3 . 3 . . 2 1 1 Energy Gun 12 | 1 3 . . . 7 . . . . . . . . . . . . . . . . 1 . . . . . . . Energy Cannon 32 | . . . . . 5 2 1 5 . . . 2 . 1 . . 4 . 10 . . . . . . . 1 1 . Ballistic Gun 14 | 2 . 1 . . 6 5 . . . . . . . . . . . . . . . . . . . . . . . Ballistic Cannon 17 | . 8 2 . 2 5 . . . . . . . . . . . . . . . . . . . . . . . . Launcher 15 | . . 2 . 2 5 3 . . . . . 1 . . . . . . . . . 1 . 1 . . . . . Special Weapon 4 | . 2 1 . . . . . . . . . . . . . . 1 . . . . . . . . . . . . Impact Weapon . | . . . . . . . . . . . . . . . . . . . . . . . . . . . . . . Slashing Weapon 19 | . . . . . . 2 1 5 2 . . 3 . 1 1 . 1 . . . . . . 1 . . 1 . 1 Piercing Weapon 21 | . . . . . . . . . 1 . . 1 1 1 . . 5 . 11 . . 1 . . . . . . . Special Melee Weapon 1 | . . . . . . . . . . . . . . . . . . . . . . . . 1 . . . . . Unidentified Prototypes 31 | . . . . . 4 1 . 1 5 8 . 1 . . . . 2 . . . . 6 . 1 . 1 . . 1 Parts Lost 37 | . . . . 2 . 4 . . . 3 1 1 . . . . . . 3 . . . . . . . 4 6 13 Power 6 | . . . . 1 . 1 . . . 2 . . . . . . . . 1 . . . . . . . 1 . . Propulsion 8 | . . . . 1 . 1 . . . . . . . . . . . . . . . . . . . . 1 1 4 Utility 19 | . . . . . . 1 . . . 1 1 1 . . . . . . 2 . . . . . . . 2 3 8 Weapon 4 | . . . . . . 1 . . . . . . . . . . . . . . . . . . . . . 2 1 Highest Loss Streak 6 | . . . . 1 . 2 . . . 3 1 1 . . . . . . 1 . . . . . . . 2 6 6 Average Slot Usage (%) 89 | . 99 100 91 84 89 88 92 87 84 93 90 92 87 89 87 87 93 94 96 94 94 93 94 91 90 89 86 71 44 Engine 4 | . 14 14 14 14 1 . . 1 7 4 . . . . . . . . . . . . . . . . . . . Core 3 | . . . . . 7 6 7 5 3 . . . . . . . . . 7 11 11 11 11 3 . . . . . Reactor 1 | . . . . . . . . . . 4 7 6 6 6 6 6 5 5 . . . . . 3 5 5 5 . . Treads 12 | . 15 28 23 23 26 18 . . . . . . . . . . . . . . . . . . . . . . . Wheel 1 | . 12 . 4 4 . . . . . . . . . . . . . . . . . . . . . . . . . Flight 9 | . . . . . . 2 23 22 19 20 21 24 25 25 25 25 22 22 22 22 22 19 16 15 15 15 12 9 2 Device 6 | . . . . . . 1 15 14 7 9 7 2 18 17 14 17 15 16 17 16 16 16 16 14 10 9 9 9 4 Storage 12 | . 28 28 20 14 9 7 15 13 8 11 14 10 11 12 12 12 11 11 9 5 5 5 5 5 5 5 5 5 4 Processor 6 | . . . . . 8 2 7 7 19 16 7 5 6 6 6 6 5 5 5 5 5 5 5 5 5 5 14 13 10 Hackware 12 | . . . . . 8 26 7 7 5 2 10 26 12 12 12 12 16 22 19 16 16 16 16 28 35 35 25 21 13 Protection 4 | . . . . . 8 6 7 7 7 8 8 3 . . 3 . 4 . 2 11 11 10 11 6 5 4 5 2 . Energy Cannon 1 | . . . . . 5 1 . . . . . . . . . . . . . . . . . . . . . . . Ballistic Gun 1 | . 1 . . . 4 10 . . . . . . . . . . . . . . . . . . . . . . . Ballistic Cannon 7 | . 21 25 28 27 4 . . . . . . . . . . . . . . . . . . . . . . . . Slashing Weapon 1 | . . . . . . . 6 6 3 7 7 5 3 2 1 . 1 . . . . . . . 5 5 4 3 2 Piercing Weapon 2 | . . . . . . . . . 1 7 7 6 2 5 6 6 7 5 9 5 5 5 5 4 . . . . . Naked Turns . | . . . . . . . . . . . . . . . . . . . . . . . . . . . . . . Heaviest Build 108 | 16 75 75 91 91 106 108 25 25 26 27 27 26 28 28 27 27 31 29 36 30 30 37 35 59 61 59 68 33 8 Greatest Support 71 | 26 40 40 40 40 71 68 27 27 27 31 27 35 28 28 28 28 32 32 32 30 30 45 45 61 61 61 61 34 27 Greatest Overweight (x) 8 | . 3 1 4 4 5 4 . . . 2 . . . . . . . . 1 . . . . . . . 3 8 1 Average Overweight (x) . | . 1 1 1 2 1 1 . . . . . . . . . . . . . . . . . . . . . . . Largest Inventory Capacity 28 | 8 20 20 24 24 24 28 8 8 8 8 8 8 8 8 8 8 8 8 8 8 8 8 8 10 10 10 10 10 4 Average Capacity 15 | 7 16 20 21 24 24 22 8 8 6 8 8 8 8 8 8 8 8 8 8 8 8 8 8 8 10 10 10 8 4 Most Carried 24 | 6 19 20 24 24 24 24 8 8 8 8 8 8 8 8 8 8 8 8 8 8 8 8 8 9 8 10 9 8 4 Average Carried 14 | 3 15 19 19 23 23 20 8 7 6 7 7 7 7 7 7 8 6 8 7 8 8 7 8 7 8 9 7 6 3 Final Capacity 24 | 8 20 20 24 24 24 8 8 8 8 8 8 8 8 8 8 8 8 8 8 8 8 8 8 10 10 10 10 4 4 Final Carried 24 | 6 18 20 24 24 24 8 8 8 8 8 8 8 7 8 8 8 8 8 8 8 8 8 8 8 8 10 7 4 4 Class Distribution -------------------- 39% | Hauler-Mutant 18% | Hacker-Sprinter 9% | Hacker-Mutant 8% | Wizard-Sprinter 8% | Sprinter 7% | Wizard-Mutant 6% | Mutant Dominant Class ---------------- Mutant | -10/Materials Hauler-Mutant | -10/Mines Hauler-Mutant | -10/Exiles Hauler-Mutant | -9/Mines Hauler-Mutant | -8/Materials Hacker-Mutant | -7/Factory Sprinter | -7/Lower Caves Sprinter | -7/Lower Caves Sprinter | -7/Zion Scavenger-Sprinter | -7/Deep Caves Hacker-Sprinter | -6/Proximity Caves Hacker-Sprinter | -6/Factory Hacker-Mutant | -6/Lower Caves Hacker-Mutant | -6/Lower Caves Hacker-Sprinter | -6/Data Miner Hacker-Sprinter | -5/Proximity Caves Hacker-Sprinter | -5/Factory Hacker-Sprinter | -5/Waste Hacker-Sprinter | -5/Factory Hacker-Sprinter | -5/Upper Caves Hacker-Sprinter | -5/Upper Caves Hacker-Sprinter | -5/Warlord Hacker-Sprinter | -4/Proximity Caves Wizard-Sprinter | -4/Factory Wizard-Sprinter | -4/Waste Wizard-Sprinter | -4/Factory Wizard-Mutant | -4/Extension Wizard-Mutant | -3/Research Wizard-Mutant | -2/Research Resources | -11 -10 -10 -10 -9 -8 -7 -7 -7 -7 -7 -6 -6 -6 -6 -6 -5 -5 -5 -5 -5 -5 -5 -4 -4 -4 -4 -4 -3 -2 ----------- Run | Scr Mat Min Exi Min Mat Fac Low Low Zio Dee Pro Fac Low Low Dat Pro Fac Was Fac Upp Upp War Pro Fac Was Fac Ext Res Res Matter Collected 5656 | 308 589 496 10 225 777 635 40 132 179 211 10 118 18 149 . 53 293 . 597 . 2 148 20 140 . 30 300 . 176 Remotely . | . . . . . . . . . . . . . . . . . . . . . . . . . . . . . . Salvage Created 6852 | 168 415 445 . 160 1694 925 . 102 . 167 55 501 . . . . 236 . 642 . . . 52 368 . . 746 . 176 Parts 381 | 9 43 27 . 14 89 47 . 5 . 10 1 18 . . . . 11 . 35 . . . 4 36 . . 29 . 3 Haulers Intercepted 12 | . . . . . 5 1 . . . . . 3 . . . . 1 . 1 . . . . . . . . . 1 Recyclers Shooed 10 | . 3 2 . . 2 1 . . . . . . . . . . . . . . . . . 1 . . 1 . . Parts Field Recycled . | . . . . . . . . . . . . . . . . . . . . . . . . . . . . . . Retrieved Matter . | . . . . . . . . . . . . . . . . . . . . . . . . . . . . . . Parts Self-Destructed 35 | . . . . . . . 2 8 3 . 4 . 4 . . . . . . . . 13 1 . . . . . . Prevented 2 | . . . . . . . . . . . . . . . . . . . . . . 2 . . . . . . . Kills | -11 -10 -10 -10 -9 -8 -7 -7 -7 -7 -7 -6 -6 -6 -6 -6 -5 -5 -5 -5 -5 -5 -5 -4 -4 -4 -4 -4 -3 -2 ------- Run | Scr Mat Min Exi Min Mat Fac Low Low Zio Dee Pro Fac Low Low Dat Pro Fac Was Fac Upp Upp War Pro Fac Was Fac Ext Res Res Combat Hostiles Destroyed 102 | . 12 12 . 7 19 19 . 2 . 3 1 2 . . . . 1 . 5 . . . 4 4 . . 10 . 1 Melee 23 | . . . . . . 2 . 2 . 3 1 2 . . . . 1 . 5 . . . . . . . 6 . 1 Guns 16 | . . . . . 4 12 . . . . . . . . . . . . . . . . . . . . . . . Cannons 27 | . 12 6 . 1 6 2 . . . . . . . . . . . . . . . . . . . . . . . AOE 36 | . . 6 . 6 9 3 . . . . . . . . . . . . . . . . 4 4 . . 4 . . Classes Destroyed 17 | 2 5 1 . . 3 3 . . . 1 . 1 . . . . . . . . . . . . . . . . 1 Worker 20 | . 4 1 . 2 3 . . . . . . . . . . . . . 4 . . . . 4 . . 2 . . Builder 5 | . . . . . . . . . . . . 1 . . . . . . . . . . . 1 . . 3 . . Tunneler 4 | 4 . . . . . . . . . . . . . . . . . . . . . . . . . . . . . Hauler 12 | . . . . . 5 1 . . . . . 3 . . . . 1 . 1 . . . . . . . . . 1 Recycler 14 | 1 1 3 . 1 6 1 . . . . . . . . . . . . . . . . . 1 . . . . . Operator 4 | . 2 . . . 2 . . . . . . . . . . . . . . . . . . . . . . . . Watcher 18 | . 2 . . . 4 . . . . . . 2 . . . . 2 . 4 . . . . 3 . . 1 . . Swarmer 35 | . 6 6 . 4 4 7 . . . . . . . . . . . . . . . . 4 4 . . . . . Grunt 35 | . 6 5 . 3 8 5 . 1 . . 1 2 . . . . . . . . . . . . . . 4 . . Brawler 1 | . . . . . . 1 . . . . . . . . . . . . . . . . . . . . . . . Duelist 1 | . . . . . . 1 . . . . . . . . . . . . . . . . . . . . . . . Sentry 14 | . . . . . 6 1 . . . . . . . . . . 1 . 2 . . . . . . . 4 . . Hunter 6 | . . . . . 1 3 . . . . . . . . . . . . . . . . . . . . 2 . . Programmer 5 | . . . . . . 1 . 1 . . . . . . . . . . 3 . . . . . . . . . . Striker 1 | . . . . . . . . . . . . . . . . . . . . . . . . . . . . . 1 Z-Technician 5 | . . . . . . . . . . 5 . . . . . . . . . . . . . . . . . . . Z-Light 1 | . . . . . . . . . . 1 . . . . . . . . . . . . . . . . . . . Assembled 3 | . . 1 . . . . . . . 2 . . . . . . . . . . . . . . . . . . . Guerrilla 1 | . . . . . . . . . . . . . . . . . . . . . . . . . . . 1 . . Best Kill Streak 7 | 3 3 4 . 4 7 5 . 1 . 5 1 2 . . . . 1 . 2 . . . 4 5 . . 4 . 1 Combat Bots Only 6 | . 3 3 . 4 6 4 . 1 . 2 1 2 . . . . 1 . 2 . . . 4 4 . . 4 . 1 Max Kills in Single Turn 4 | 1 1 3 . 1 4 3 . 1 . 1 1 1 . . . . 1 . 1 . . . 4 4 . . 2 . 1 Gunslinging . | . . . . . . . . . . . . . . . . . . . . . . . . . . . . . . Exploded 4 | . . 3 . 1 4 3 . . . . . . . . . . . . . . . . 4 4 . . 1 . . Melee 1 | . . . . . . 1 . 1 . 1 1 1 . . . . 1 . 1 . . . . . . . 1 . 1 Uniques/NPCs Destroyed . | . . . . . . . . . . . . . . . . . . . . . . . . . . . . . . Combat | -11 -10 -10 -10 -9 -8 -7 -7 -7 -7 -7 -6 -6 -6 -6 -6 -5 -5 -5 -5 -5 -5 -5 -4 -4 -4 -4 -4 -3 -2 -------- Run | Scr Mat Min Exi Min Mat Fac Low Low Zio Dee Pro Fac Low Low Dat Pro Fac Was Fac Upp Upp War Pro Fac Was Fac Ext Res Res Damage Taken 8965 | . 432 216 . 182 490 1372 46 66 . 419 269 223 24 . . 20 111 . 902 . . . 24 13 . . 1124 672 2360 Core 2691 | . 37 57 . 6 145 71 17 31 . . 129 74 . . . 20 41 . 277 . . . . . . . 213 101 1472 Absorbed by Shields 42 | . . . . . . . . . . . . . . . . . . . . . . . . . . . 42 . . Core Remaining (%) 78 | 100 . . . 60 73 . . . . . 64 . . . . 88 . . . . . . 68 . . . 81 92 . Volleys Fired 350 | 18 46 37 . 15 95 50 7 11 . . . 3 . 4 . . 10 . 30 . . . 1 1 . . 21 1 . Largest 2 | 2 2 2 . 2 2 2 1 1 . . . 1 . 1 . . 1 . 1 . . . 1 1 . . 1 1 . Hottest 112 | 70 112 100 . 70 108 93 65 65 . . . 90 . 90 . . 90 . 90 . . . 80 80 . . 105 105 . Shots Fired 540 | 36 87 63 . 21 147 97 7 11 . . . 3 . 4 . . 10 . 30 . . . 1 1 . . 21 1 . Gun 181 | 36 4 7 . . 47 87 . . . . . . . . . . . . . . . . . . . . . . . Cannon 303 | . 78 45 . 12 89 8 7 11 . . . 3 . 4 . . 9 . 30 . . . . . . . 6 1 . Launcher 43 | . . 4 . 9 11 2 . . . . . . . . . . . . . . . . 1 1 . . 15 . . Special 13 | . 5 7 . . . . . . . . . . . . . . 1 . . . . . . . . . . . . Kinetic 309 | 18 79 52 . 12 61 87 . . . . . . . . . . . . . . . . . . . . . . . Thermal 178 | 18 8 7 . . 66 8 7 11 . . . 3 . 4 . . 9 . 30 . . . . . . . 6 1 . Explosive 31 | . . 4 . 9 . 1 . . . . . . . . . . . . . . . . 1 1 . . 15 . . Electromagnetic 21 | . . . . . 20 1 . . . . . . . . . . . . . . . . . . . . . . . Robot Hit Streak 25 | 5 5 14 . 6 19 18 . . . . . . . . . . 19 . . . . . . . . . 25 . . Robot Miss Streak 6 | 6 6 2 . 3 3 4 . . . . . . . . . . . . . . . . . . . . . . . Penetration Max . | . . . . . . . . . . . . . . . . . . . . . . . . . . . . . . Secondary Targets 1 | . . . . . . 1 . . . . . . . . . . . . . . . . . . . . . . . Max Gunslinging Chain 1 | . . . . . . 1 . . . . . . . . . . . . . . . . . . . . . . . Shots Hit Robots 403 | 19 42 37 . 12 83 63 . 3 . 16 5 25 1 . 1 . 7 . 33 . . . . 10 . . 32 . 14 Core Hits 271 | 8 22 18 . 14 65 43 . 2 . 4 2 10 . . . . 4 . 17 . . . 4 14 . . 40 . 4 Critical Hits 9 | . . 1 . . 1 . . . . 1 . 2 . . . . . . 1 . . . . 1 . . 2 . . Critical Kills 6 | . . . . . 1 . . . . . . 2 . . . . . . . . . . . 1 . . 2 . . Critical Parts Destroyed 2 | . . 1 . . . . . . . . . . . . . . . . 1 . . . . . . . . . . Melee Attacks 368 | . . . . . . 3 5 13 8 32 7 47 4 5 5 3 46 . 81 . . . 1 44 . 8 30 6 20 Impact . | . . . . . . . . . . . . . . . . . . . . . . . . . . . . . . Slashing 185 | . . . . . . 3 5 13 8 27 5 39 2 1 4 . 12 . . . . . . 2 . 8 30 6 20 Piercing 182 | . . . . . . . . . . 5 2 8 2 4 1 3 34 . 81 . . . 1 41 . . . . . Sneak Attacks 35 | . . . . . . . . . . 7 . 4 . . 1 . 2 . 7 . . . . 8 . . 5 . 1 Combat Hostiles 5 | . . . . . . . . . . 2 . . . . . . . . . . . . . . . . 3 . . Follow-up Attacks 8 | . . . . . . . . . . 3 1 . . . . . . . 4 . . . . . . . . . . Damage Inflicted 19536 | 210 740 845 . 762 2270 1671 . 139 . 1668 211 1685 35 . 108 . 490 . 1952 . . . 294 1564 . . 3955 . 937 Guns 2047 | 210 49 52 . . 658 1078 . . . . . . . . . . . . . . . . . . . . . . . Cannons 2496 | . 671 526 . 139 991 169 . . . . . . . . . . . . . . . . . . . . . . . Explosions 4199 | . . 267 . 614 601 315 . . . . . . . . . . . . . . . . 294 446 . . 1662 . . Melee 10737 | . . . . . . 101 . 139 . 1668 211 1685 35 . 108 . 490 . 1952 . . . . 1118 . . 2293 . 937 Ramming 57 | . 20 . . 9 20 8 . . . . . . . . . . . . . . . . . . . . . . . Kinetic 3401 | 71 679 578 . 139 856 1078 . . . . . . . . . . . . . . . . . . . . . . . Thermal 1049 | 139 41 . . 73 627 169 . . . . . . . . . . . . . . . . . . . . . . . Explosive 3439 | . . 267 . 541 . 229 . . . . . . . . . . . . . . . . 294 446 . . 1662 . . Electromagnetic 853 | . . . . . 767 86 . . . . . . . . . . . . . . . . . . . . . . . Impact . | . . . . . . . . . . . . . . . . . . . . . . . . . . . . . . Slashing 7014 | . . . . . . 101 . 139 . 1529 187 1685 35 . 108 . . . . . . . . . . . 2293 . 937 Piercing 3723 | . . . . . . . . . . 139 24 . . . . . 490 . 1952 . . . . 1118 . . . . . Highest Corruption 5 | . . . . . . . . . . . 2 5 5 5 5 5 . . 5 2 2 1 . . . . . . . Average Corruption 3 | . . . . . . . . . . . 1 5 5 5 5 5 . . 2 2 1 1 . . . . . . . Corruption Purged 5 | . . . . . . . . . . . . . . . . . . . 4 . 1 . . . . . . . . Effects 55 | . . . . . . . . . . . 1 16 2 5 2 4 . . 23 1 1 . . . . . . . . Message Errors 8 | . . . . . . . . . . . . 1 . . . 2 . . 5 . . . . . . . . . . Matter Fused 13 | . . . . . . . . . . . . 3 1 3 . 2 . . 4 . . . . . . . . . . Heat Flow Errors 5 | . . . . . . . . . . . . 2 . . . . . . 3 . . . . . . . . . . Energy Discharges 7 | . . . . . . . . . . . . 5 . . . . . . 2 . . . . . . . . . . Parts Rejected 1 | . . . . . . . . . . . . . . . . . . . 1 . . . . . . . . . . Data Loss (minor) 9 | . . . . . . . . . . . 1 3 . 1 . . . . 2 1 1 . . . . . . . . Data Loss (major) 2 | . . . . . . . . . . . . . 1 . 1 . . . . . . . . . . . . . . Misfires 1 | . . . . . . . . . . . . . . . . . . . 1 . . . . . . . . . . Targeting Errors 8 | . . . . . . . . . . . . 2 . 1 1 . . . 4 . . . . . . . . . . Weapon Failures 1 | . . . . . . . . . . . . . . . . . . . 1 . . . . . . . . . . Overload Shots . | . . . . . . . . . . . . . . . . . . . . . . . . . . . . . . Overflow Damage 1588 | . 14 12 . 35 27 . . . . 885 . 57 13 . . . 6 . 239 . . . . . . . 215 . 85 Projectiles 42 | . 14 12 . . 16 . . . . . . . . . . . . . . . . . . . . . . . . Explosions 49 | . . . . 35 11 . . . . . . . . . . . . . . . . . . . . . 3 . . Melee 1497 | . . . . . . . . . . 885 . 57 13 . . . 6 . 239 . . . . . . . 212 . 85 Knockbacks 15 | . 7 4 . . 3 1 . . . . . . . . . . . . . . . . . . . . . . . Impact 1 | . . . . . . 1 . . . . . . . . . . . . . . . . . . . . . . . Kinetic 14 | . 7 4 . . 3 . . . . . . . . . . . . . . . . . . . . . . . . Secondary . | . . . . . . . . . . . . . . . . . . . . . . . . . . . . . . Self-Inflicted Damage 30 | . . . . 30 . . . . . . . . . . . . . . . . . . . . . . . . . Shots 1 | . . . . 1 . . . . . . . . . . . . . . . . . . . . . . . . . Rammed 8 | . 1 . . 1 4 2 . . . . . . . . . . . . . . . . . . . . . . . Targets Rammed 9 | . 2 . . 1 4 2 . . . . . . . . . . . . . . . . . . . . . . . Kicked . | . . . . . . . . . . . . . . . . . . . . . . . . . . . . . . Crushed 1 | . 1 . . . . . . . . . . . . . . . . . . . . . . . . . . . . Highest Temperature 398 | 90 63 112 . 27 272 113 140 80 . 19 13 251 26 64 . 2 174 . 398 178 122 176 107 47 7 . 252 12 . Average Temperature 55 | 36 21 36 . 9 53 47 68 30 . 2 3 62 12 32 . 1 45 . 81 126 64 116 28 8 4 . 100 9 . Received Heat Transfer 1241 | . 75 104 . 39 171 96 18 15 . 126 51 90 9 . . 9 18 . 135 . . . . . . . 177 45 63 Effects 2 | . . . . . 1 . . . . . . . . . . . . . 1 . . . . . . . . . . Shutdowns 1 | . . . . . . . . . . . . . . . . . . . 1 . . . . . . . . . . Energy Bleed 1 | . . . . . 1 . . . . . . . . . . . . . . . . . . . . . . . . Siege Activations . | . . . . . . . . . . . . . . . . . . . . . . . . . . . . . . Robots Corrupted . | . . . . . . . . . . . . . . . . . . . . . . . . . . . . . . Combat Hostiles . | . . . . . . . . . . . . . . . . . . . . . . . . . . . . . . Parts Fried 4 | . . . . . 4 . . . . . . . . . . . . . . . . . . . . . . . . Impact Corruptions . | . . . . . . . . . . . . . . . . . . . . . . . . . . . . . . Robots Melted . | . . . . . . . . . . . . . . . . . . . . . . . . . . . . . . Combat Hostiles . | . . . . . . . . . . . . . . . . . . . . . . . . . . . . . . Parts Melted 3 | . . . . . 2 . . . . . . . . . . . . . . . . . . . . . 1 . . Heat Transferred 1926 | 407 111 . . 100 1086 222 . . . . . . . . . . . . . . . . . . . . . . . Parts Sabotaged . | . . . . . . . . . . . . . . . . . . . . . . . . . . . . . . Parts Stolen 2 | . . . . . . . . . . . . . 2 . . . . . . . . . . . . . . . . Parts Stripped . | . . . . . . . . . . . . . . . . . . . . . . . . . . . . . . Power Chain Reactions 3 | . . . . . 3 . . . . . . . . . . . . . . . . . . . . . . . . Missiles Intercepted . | . . . . . . . . . . . . . . . . . . . . . . . . . . . . . . Alert | -11 -10 -10 -10 -9 -8 -7 -7 -7 -7 -7 -6 -6 -6 -6 -6 -5 -5 -5 -5 -5 -5 -5 -4 -4 -4 -4 -4 -3 -2 ------- Run | Scr Mat Min Exi Min Mat Fac Low Low Zio Dee Pro Fac Low Low Dat Pro Fac Was Fac Upp Upp War Pro Fac Was Fac Ext Res Res Peak Influence 1028 | 25 265 253 . 210 337 1028 . . . . . 327 . . . . 669 169 705 . . . . 412 123 525 228 140 290 Initial 154 | . 16 58 . . 1 74 . . . . . 50 . . . . 37 154 118 . . . . 65 123 96 8 43 45 Average 179 | 9 138 112 . 40 152 496 . . . . . 199 . . . . 322 155 202 . . . . 284 123 288 80 67 126 Maximum Alert Level 3 | . 1 1 . 1 1 3 . . . . . 1 . . . . 2 . 3 . . . . 2 . 2 1 . 1 Low Security (%) 63 | 100 79 73 . 87 67 2 . . . . . 59 . . . . 40 100 47 . . . . 24 100 50 99 100 77 Level 1 27 | . 20 26 . 12 32 26 . . . . . 40 . . . . 7 . 52 . . . . 67 . . . . 22 Level 2 9 | . . . . . . 68 . . . . . . . . . . 51 . . . . . . 7 . 49 . . . Level 3 . | . . . . . . 2 . . . . . . . . . . . . . . . . . . . . . . . Level 4 . | . . . . . . . . . . . . . . . . . . . . . . . . . . . . . . Level 5 . | . . . . . . . . . . . . . . . . . . . . . . . . . . . . . . High Security . | . . . . . . . . . . . . . . . . . . . . . . . . . . . . . . Max Security . | . . . . . . . . . . . . . . . . . . . . . . . . . . . . . . Squads Dispatched 26 | . 2 . . 1 2 4 . . . . . 2 . . . . 4 . 4 . . . . 2 . . 4 . 1 Investigation 10 | . . . . 1 . 2 . . . . . . . . . . 2 . 3 . . . . 1 . . 1 . . Extermination 5 | . . . . . . 1 . . . . . 1 . . . . 1 . 1 . . . . 1 . . . . . Reinforcement 11 | . 2 . . . 2 1 . . . . . 1 . . . . 1 . . . . . . . . . 3 . 1 Assault . | . . . . . . . . . . . . . . . . . . . . . . . . . . . . . . Garrison . | . . . . . . . . . . . . . . . . . . . . . . . . . . . . . . Intercept . | . . . . . . . . . . . . . . . . . . . . . . . . . . . . . . Construction Impeded 3 | . . . . . . . . . . . . . . . . . . . . . . . . . . . 3 . . Haulers Reinforced 3 | . . . . . . . . . . . . 1 . . . . 1 . . . . . . . . . . . 1 Stealth | -11 -10 -10 -10 -9 -8 -7 -7 -7 -7 -7 -6 -6 -6 -6 -6 -5 -5 -5 -5 -5 -5 -5 -4 -4 -4 -4 -4 -3 -2 --------- Run | Scr Mat Min Exi Min Mat Fac Low Low Zio Dee Pro Fac Low Low Dat Pro Fac Was Fac Upp Upp War Pro Fac Was Fac Ext Res Res Distress Signals 30 | . 2 . . . 4 3 . . . . . 1 . . . . 3 . 2 . . . . 2 . 1 2 1 9 Communications Jammed . | . . . . . . . . . . . . . . . . . . . . . . . . . . . . . . Distress Signals . | . . . . . . . . . . . . . . . . . . . . . . . . . . . . . . Times Spotted 315 | . 21 14 . 7 39 25 7 7 . 6 8 19 7 2 4 4 15 . 28 4 3 . 1 12 2 1 22 16 41 Peak Tracking Total 17 | . 5 3 . 4 7 7 8 3 . 3 4 6 4 2 4 4 5 . 8 2 4 . 1 8 2 2 5 13 17 Tactical Retreats 57 | . 1 2 . 1 6 1 4 3 . . 3 2 1 1 . 1 6 . 10 . . . 1 4 . . . 2 8 Traps | -11 -10 -10 -10 -9 -8 -7 -7 -7 -7 -7 -6 -6 -6 -6 -6 -5 -5 -5 -5 -5 -5 -5 -4 -4 -4 -4 -4 -3 -2 ------- Run | Scr Mat Min Exi Min Mat Fac Low Low Zio Dee Pro Fac Low Low Dat Pro Fac Was Fac Upp Upp War Pro Fac Was Fac Ext Res Res Traps Triggered 12 | . 1 . . . 3 2 . . . . . . . . . . 2 . 1 . . . . 1 . . 2 . . Indirectly . | . . . . . . . . . . . . . . . . . . . . . . . . . . . . . . Trap Hack Attempts . | . . . . . . . . . . . . . . . . . . . . . . . . . . . . . . Triggered . | . . . . . . . . . . . . . . . . . . . . . . . . . . . . . . Disarmed . | . . . . . . . . . . . . . . . . . . . . . . . . . . . . . . Reprogrammed . | . . . . . . . . . . . . . . . . . . . . . . . . . . . . . . Reused . | . . . . . . . . . . . . . . . . . . . . . . . . . . . . . . Traps Extracted . | . . . . . . . . . . . . . . . . . . . . . . . . . . . . . . Installed . | . . . . . . . . . . . . . . . . . . . . . . . . . . . . . . Triggered 9 | . . . . . . . . . . . 1 . . . . . . . . 1 . 6 1 . . . . . . Machines | -11 -10 -10 -10 -9 -8 -7 -7 -7 -7 -7 -6 -6 -6 -6 -6 -5 -5 -5 -5 -5 -5 -5 -4 -4 -4 -4 -4 -3 -2 ---------- Run | Scr Mat Min Exi Min Mat Fac Low Low Zio Dee Pro Fac Low Low Dat Pro Fac Was Fac Upp Upp War Pro Fac Was Fac Ext Res Res Machines Disabled 13 | . 1 1 . 3 3 1 . 1 . 1 . . . . 1 . . . 1 . . . . . . . . . . Max in Single Turn 1 | . 1 1 . 1 1 1 . 1 . 1 . . . . 1 . . . 1 . . . . . . . . . . Garrison Access 10 | . . . . . . 1 . . . . . 1 . . . . 2 . 2 . . . . 1 . . . 1 2 Machines Sabotaged . | . . . . . . . . . . . . . . . . . . . . . . . . . . . . . . Garrisons Compromised . | . . . . . . . . . . . . . . . . . . . . . . . . . . . . . . Overloaded Fab Kills . | . . . . . . . . . . . . . . . . . . . . . . . . . . . . . . Fab Network Shutdowns 4 | . . . . . . 1 . . . . . . . . . . 1 . 1 . . . . . . 1 . . . Hacking | -11 -10 -10 -10 -9 -8 -7 -7 -7 -7 -7 -6 -6 -6 -6 -6 -5 -5 -5 -5 -5 -5 -5 -4 -4 -4 -4 -4 -3 -2 --------- Run | Scr Mat Min Exi Min Mat Fac Low Low Zio Dee Pro Fac Low Low Dat Pro Fac Was Fac Upp Upp War Pro Fac Was Fac Ext Res Res Machines Accessed 134 | . 6 . 2 1 15 9 . . . . . 15 1 . 4 . 17 . 23 . 1 6 . 16 . 8 3 3 4 Terminals 80 | . 5 . . . 9 5 . . . . . 10 . . . . 14 . 14 . . . . 12 . 5 3 2 1 Fabricators 11 | . . . . . . 1 . . . . . 1 . . . . 1 . 4 . . . . 2 . 2 . . . Repair Stations 8 | . 1 . . . 2 1 . . . . . 1 . . . . . . 2 . . . . . . 1 . . . Recycling Units 4 | . . . . . 2 . . . . . . 1 . . . . . . . . . . . . . . . . 1 Scanalyzers 6 | . . . . . 2 1 . . . . . 1 . . . . . . 1 . . . . 1 . . . . . Garrison Access 10 | . . . . . . 1 . . . . . 1 . . . . 2 . 2 . . . . 1 . . . 1 2 Total Hacks 594 | . 20 . 2 1 54 29 . . . . . 56 1 . 28 . 81 . 95 . 1 12 . 119 . 60 15 11 9 Successful 412 | . 15 . 2 1 45 22 . . . . . 48 1 . 28 . 44 . 66 . 1 12 . 65 . 39 13 6 4 Failed 181 | . 5 . . . 8 7 . . . . . 8 . . . . 37 . 29 . . . . 54 . 21 2 5 5 Catastrophic 19 | . . . . . . 1 . . . . . 1 . . . . 3 . 3 . . . . 8 . 3 . . . Database Lockouts 1 | . . . . . 1 . . . . . . . . . . . . . . . . . . . . . . . . Manual 320 | . 10 . 1 . 23 15 . . . . . 31 . . . . 41 . 59 . . 1 . 66 . 53 10 9 1 Terminals 413 | . 15 . . . 35 20 . . . . . 40 . . . . 67 . 61 . . . . 96 . 51 15 10 3 Fabricators 62 | . . . . . . 3 . . . . . 3 . . . . 10 . 20 . . . . 19 . 7 . . . Repair Stations 28 | . 5 . . . 5 2 . . . . . 4 . . . . . . 10 . . . . . . 2 . . . Recycling Units 7 | . . . . . 2 . . . . . . 2 . . . . . . . . . . . . . . . . 3 Scanalyzers 25 | . . . . . 12 2 . . . . . 6 . . . . . . 2 . . . . 3 . . . . . Garrison Access 14 | . . . . . . 2 . . . . . 1 . . . . 4 . 2 . . . . 1 . . . 1 3 Terminal Hacks 190 | . 6 . 2 1 17 6 . . . . . 14 1 . 28 . 25 . 14 . 1 12 . 29 . 23 8 2 1 Record 20 | . . . 1 . . . . . . . . . . . 11 . . . . . . 5 . 3 . . . . . Part Schematic 31 | . . . . . . . . . . . . 6 . . 8 . 8 . 2 . . . . 6 . . . . 1 Robot Schematic 6 | . . . . . . . . . . . . . . . 6 . . . . . . . . . . . . . . Robot Analysis 10 | . . . . . . . . . . . . . . . . . . . . . . . . . . 8 2 . . Prototype ID Bank 39 | . 2 . . . 4 1 . . . . . 2 . . 3 . 9 . 2 . . 5 . 6 . 5 . . . Open Door 6 | . . . . 1 . . . . . . . . 1 . . . . . . . 1 2 . . . 1 . . . Branch Access Points 6 | . . . . . . 1 . . . . . 1 . . . . 1 . 1 . . . . 1 . 1 . . . Machine Index 3 | . . . . . . . . . . . . 1 . . . . . . . . . . . . . 1 1 . . Terminal Index 5 | . . . . . . 1 . . . . . . . . . . . . 1 . . . . 1 . 1 . 1 . Fabricator Index 2 | . . . . . . . . . . . . . . . . . . . 1 . . . . 1 . . . . . Repair Station Index 3 | . . . . . 1 . . . . . . . . . . . . . 1 . . . . 1 . . . . . Recycling Unit Index 1 | . . . . . . . . . . . . . . . . . . . . . . . . 1 . . . . . Scanalyzer Index 1 | . . . . . . . . . . . . . . . . . . . . . . . . 1 . . . . . Garrison Index 2 | . . . . . . . . . . . . . . . . . . . 1 . . . . 1 . . . . . Unreport Threat 11 | . . . . . 2 . . . . . . . . . . . 1 . 2 . . . . 1 . 4 1 . . Locate Traps 15 | . 1 . . . 3 . . . . . . 2 . . . . 3 . 2 . . . . 3 . . 1 . . Recall Investigation 2 | . 1 . . . . . . . . . . . . . . . 1 . . . . . . . . . . . . Recall Extermination 2 | . . . . . . . . . . . . 1 . . . . 1 . . . . . . . . . . . . Recall Reinforcements 3 | . . . . . 1 . . . . . . . . . . . . . . . . . . . . . 2 . . Hauler Manifests 6 | . 1 . . . 2 1 . . . . . . . . . . 1 . . . . . . 1 . . . . . Registered Components 2 | . . . . . 1 . . . . . . . . . . . . . . . . . . . . 1 . . . Registered Prototypes 2 | . . . . . . 1 . . . . . . . . . . . . 1 . . . . . . . . . . Zone Layout 11 | . 1 . . . 3 1 . . . . . 1 . . . . . . . . . . . 2 . 1 1 1 . EX-Prototype ID Bank 1 | . . . 1 . . . . . . . . . . . . . . . . . . . . . . . . . . Fabricator Hacks 36 | . . . . . . 3 . . . . . 3 . . . . 4 . 11 . . . . 11 . 4 . . . Load Schematic 16 | . . . . . . 1 . . . . . 2 . . . . 2 . 5 . . . . 4 . 2 . . . Build 20 | . . . . . . 2 . . . . . 1 . . . . 2 . 6 . . . . 7 . 2 . . . Repair Station Hacks 25 | . 3 . . . 4 2 . . . . . 4 . . . . . . 10 . . . . . . 2 . . . Scan Component 13 | . 2 . . . 2 1 . . . . . 2 . . . . . . 5 . . . . . . 1 . . . Repair 12 | . 1 . . . 2 1 . . . . . 2 . . . . . . 5 . . . . . . 1 . . . Recycling Unit Hacks 1 | . . . . . . . . . . . . . . . . . . . . . . . . . . . . . 1 Retrieve Matter 1 | . . . . . . . . . . . . . . . . . . . . . . . . . . . . . 1 Scanalyzer 23 | . . . . . 11 2 . . . . . 6 . . . . . . 2 . . . . 2 . . . . . Insert Component 12 | . . . . . 6 1 . . . . . 3 . . . . . . 1 . . . . 1 . . . . . Analyze 11 | . . . . . 5 1 . . . . . 3 . . . . . . 1 . . . . 1 . . . . . Garrison Access Hacks 9 | . . . . . . . . . . . . 1 . . . . 2 . 2 . . . . 1 . . . 1 2 Seal Access 9 | . . . . . . . . . . . . 1 . . . . 2 . 2 . . . . 1 . . . 1 2 Unauthorized Hacks 128 | . 6 . . . 13 9 . . . . . 20 . . . . 13 . 27 . . . . 22 . 10 5 3 . Terminals 109 | . 6 . . . 11 8 . . . . . 20 . . . . 11 . 21 . . . . 17 . 7 5 3 . Track 44 | . 3 . . . 6 4 . . . . . 7 . . . . 3 . 7 . . . . 8 . 3 2 1 . Assimilate 18 | . 1 . . . 2 1 . . . . . 3 . . . . 2 . 3 . . . . 2 . 1 1 2 . Botnet 34 | . 1 . . . 2 2 . . . . . 6 . . . . 6 . 9 . . . . 5 . 2 1 . . Disrupt 9 | . . . . . . . . . . . . 3 . . . . . . 2 . . . . 2 . 1 1 . . Operators 4 | . 1 . . . 1 1 . . . . . 1 . . . . . . . . . . . . . . . . . Fabricators 16 | . . . . . . . . . . . . . . . . . 2 . 6 . . . . 5 . 3 . . . Report 2 | . . . . . . . . . . . . . . . . . . . 1 . . . . 1 . . . . . Prioritize 7 | . . . . . . . . . . . . . . . . . 1 . 3 . . . . 2 . 1 . . . Siphon 7 | . . . . . . . . . . . . . . . . . 1 . 2 . . . . 2 . 2 . . . Repair Stations . | . . . . . . . . . . . . . . . . . . . . . . . . . . . . . . Recycling Units 2 | . . . . . 2 . . . . . . . . . . . . . . . . . . . . . . . . Mask 2 | . . . . . 2 . . . . . . . . . . . . . . . . . . . . . . . . Scanalyzers . | . . . . . . . . . . . . . . . . . . . . . . . . . . . . . . Garrison Access 1 | . . . . . . 1 . . . . . . . . . . . . . . . . . . . . . . . Jam 1 | . . . . . . 1 . . . . . . . . . . . . . . . . . . . . . . . Data Cores Recovered 1 | . . . . . . . . . . . . . . . . . . . . . . . . . . . 1 . . Used . | . . . . . . . . . . . . . . . . . . . . . . . . . . . . . . Hacking Detections 88 | . 6 . . . 13 8 . . . . . 10 . . . . 14 . 14 . . . . 12 . 4 3 2 2 Full Trace Events 6 | . . . . . . . . . . . . . . . . . 1 . 3 . . . . 1 . . 1 . . Feedback Events . | . . . . . . . . . . . . . . . . . . . . . . . . . . . . . . Feedback Blocked . | . . . . . . . . . . . . . . . . . . . . . . . . . . . . . . Robot Schematics Acquired 6 | . . . . . . . . . . . . . . . 6 . . . . . . . . . . . . . . Robots Built . | . . . . . . . . . . . . . . . . . . . . . . . . . . . . . . Matter . | . . . . . . . . . . . . . . . . . . . . . . . . . . . . . . Time . | . . . . . . . . . . . . . . . . . . . . . . . . . . . . . . Total Robot Build Rating . | . . . . . . . . . . . . . . . . . . . . . . . . . . . . . . Part Schematics Acquired 41 | . . . . . 4 1 . . . . . 9 . . 8 . 8 . 3 . . . . 7 . . . . 1 Parts Built 17 | . . . . . . 2 . . . . . 1 . . . . 2 . 4 . . . . 6 . 2 . . . Matter 3742 | . . . . . . 438 . . . . . 285 . . . . 426 . 1018 . . . . 1104 . 471 . . . Time 962 | . . . . . . 76 . . . . . 50 . . . . 114 . 239 . . . . 251 . 232 . . . Total Part Build Rating 96 | . . . . . . 6 . . . . . 5 . . . . 10 . 25 . . . . 34 . 16 . . . Parts Repaired 12 | . 1 . . . 2 1 . . . . . 2 . . . . . . 5 . . . . . . 1 . . . Time 777 | . 26 . . . 120 14 . . . . . 182 . . . . . . 395 . . . . . . 40 . . . Parts Recycled . | . . . . . . . . . . . . . . . . . . . . . . . . . . . . . . Recycled Matter . | . . . . . . . . . . . . . . . . . . . . . . . . . . . . . . Retrieved Matter . | . . . . . . . . . . . . . . . . . . . . . . . . . . . . . . Retrieved Components . | . . . . . . . . . . . . . . . . . . . . . . . . . . . . . . Parts Scanalyzed 11 | . . . . . 6 . . . . . . 3 . . . . . . 1 . . . . 1 . . . . . Part Schematics Acquired 10 | . . . . . 4 1 . . . . . 3 . . . . . . 1 . . . . 1 . . . . . Parts Damaged 4 | . . . . . 1 . . . . . . 1 . . . . . . 1 . . . . 1 . . . . . Bothacking | -11 -10 -10 -10 -9 -8 -7 -7 -7 -7 -7 -6 -6 -6 -6 -6 -5 -5 -5 -5 -5 -5 -5 -4 -4 -4 -4 -4 -3 -2 ------------ Run | Scr Mat Min Exi Min Mat Fac Low Low Zio Dee Pro Fac Low Low Dat Pro Fac Was Fac Upp Upp War Pro Fac Was Fac Ext Res Res Used RIF Installer . | . . . . . . . . . . . . . . . . . . . . . . . . . . . . . . Robots Hacked 2 | . . . . . . . . . . . . . . . . . 1 . . . . . . 1 . . . . . Non-combat 2 | . . . . . . . . . . . . . . . . . 1 . . . . . . 1 . . . . . Combat . | . . . . . . . . . . . . . . . . . . . . . . . . . . . . . . Robot Hacks Applied 2 | . . . . . . . . . . . . . . . . . 1 . . . . . . 1 . . . . . find_chute 2 | . . . . . . . . . . . . . . . . . 1 . . . . . . 1 . . . . . Relay Couplers Released . | . . . . . . . . . . . . . . . . . . . . . . . . . . . . . . Robots Rewired 17 | . . . . . . . . . . . . . . . . . . . . . . . . . . . 17 . . Allies Hacked . | . . . . . . . . . . . . . . . . . . . . . . . . . . . . . . Hacks Repelled . | . . . . . . . . . . . . . . . . . . . . . . . . . . . . . . Allies | -11 -10 -10 -10 -9 -8 -7 -7 -7 -7 -7 -6 -6 -6 -6 -6 -5 -5 -5 -5 -5 -5 -5 -4 -4 -4 -4 -4 -3 -2 -------- Run | Scr Mat Min Exi Min Mat Fac Low Low Zio Dee Pro Fac Low Low Dat Pro Fac Was Fac Upp Upp War Pro Fac Was Fac Ext Res Res Total Allies 33 | . 1 . . . 2 . . . 2 . . 2 . . . . 2 . 3 . . . . 2 . . 17 2 . Largest Group 9 | . 1 . . . 1 . . . 2 2 . 2 . . . . 1 . 1 . . . . 1 . 1 9 2 . Highest-Rated Group 323 | . 10 . . . 26 . . . 62 62 . 36 . . . . 26 . 26 . . . . 44 . 44 323 70 . Highest-Rated Ally 49 | . 10 . . . 26 . . . 37 37 . 26 . . . . 26 . 26 . . . . 44 . 44 49 44 . Total Orders 11 | . . . . . . . . . . . . . . . . . . . . . . . . . . . 10 1 . STAY 7 | . . . . . . . . . . . . . . . . . . . . . . . . . . . 6 1 . FOLLOW 4 | . . . . . . . . . . . . . . . . . . . . . . . . . . . 4 . . Ally Attacks 91 | . . . . . . . . . . 16 . . . . . . . . . . . . . . . . 75 . . Total Damage 2248 | . . . . . . . . . . 178 . . . . . . . . . . . . . . . . 2070 . . Kills 10 | . . . . . . . . . . 2 . . . . . . . . . . . . . . . . 8 . . Allies Corrupted . | . . . . . . . . . . . . . . . . . . . . . . . . . . . . . . Allies Melted . | . . . . . . . . . . . . . . . . . . . . . . . . . . . . . . Intel | -11 -10 -10 -10 -9 -8 -7 -7 -7 -7 -7 -6 -6 -6 -6 -6 -5 -5 -5 -5 -5 -5 -5 -4 -4 -4 -4 -4 -3 -2 ------- Run | Scr Mat Min Exi Min Mat Fac Low Low Zio Dee Pro Fac Low Low Dat Pro Fac Was Fac Upp Upp War Pro Fac Was Fac Ext Res Res Robot Analysis Total 10 | . . . . . . . . . . . . . . . . . . . . . . . . . . 8 2 . . Derelict Logs Recovered 13 | . . 2 . 1 . . 2 1 . . . . 1 2 . 1 . . . 1 2 . . . . . . . . Drone Launches . | . . . . . . . . . . . . . . . . . . . . . . . . . . . . . . Drone Recoveries . | . . . . . . . . . . . . . . . . . . . . . . . . . . . . . . Exploration | -11 -10 -10 -10 -9 -8 -7 -7 -7 -7 -7 -6 -6 -6 -6 -6 -5 -5 -5 -5 -5 -5 -5 -4 -4 -4 -4 -4 -3 -2 ------------- Run | Scr Mat Min Exi Min Mat Fac Low Low Zio Dee Pro Fac Low Low Dat Pro Fac Was Fac Upp Upp War Pro Fac Was Fac Ext Res Res Turns Passed 18203 | 150 1176 1238 770 1427 3486 1110 214 351 715 440 112 566 105 152 59 155 820 9 1790 46 65 200 106 716 10 270 1082 394 469 Spaces Moved 20923 | 88 683 602 432 689 1536 456 406 529 1624 691 306 1309 338 402 98 499 1490 63 2934 208 259 670 293 1830 59 597 843 308 681 Core 259 | 12 . . . . . . . . 78 4 . . . . . . . . . . . . . . . . 87 4 74 Treads 3647 | . 273 602 336 536 1536 364 . . . . . . . . . . . . . . . . . . . . . . . Legs . | . . . . . . . . . . . . . . . . . . . . . . . . . . . . . . Wheels 735 | 76 410 . 96 153 . . . . . . . . . . . . . . . . . . . . . . . . . Hover 432 | . . . . . . . . . . 3 . . . . . . . . . . . . . . . . . . 429 Flight 15850 | . . . . . . 92 406 529 1546 684 306 1309 338 402 98 499 1490 63 2934 208 259 670 293 1830 59 597 756 304 178 Fastest Speed 13 | 50 80 180 120 120 180 29 29 29 29 14 29 26 13 13 13 13 13 13 13 13 13 13 27 13 13 27 13 13 30 Average Speed 58 | 83 130 180 172 182 183 158 29 29 30 29 29 26 14 14 13 13 22 13 21 22 24 25 27 23 14 27 76 28 56 Slowest Speed 450 | 100 220 180 200 200 260 250 29 29 50 150 29 29 26 26 13 26 26 13 96 26 26 32 27 27 27 27 200 450 100 Overloaded Moves . | . . . . . . . . . . . . . . . . . . . . . . . . . . . . . . Propulsion Burnouts . | . . . . . . . . . . . . . . . . . . . . . . . . . . . . . . Robots Hopped 73 | . . . . . . 2 . . . . 2 6 4 . . 1 20 . 20 . 1 . . 10 . 1 4 2 . Cave-ins Triggered 1 | . . . . . . . . . . . . . . . . . . . 1 . . . . . . . . . . Exploration Rate (%) 57 | 5 87 98 70 100 98 15 60 71 86 77 62 35 48 65 77 74 33 65 54 49 56 85 57 40 59 15 58 11 16 Regions Visited 29 Branch Regions 17 Pre-discovered Areas 10 | . . 2 1 1 . . . . 2 . . . . 1 1 1 . . . . 1 . . . . . . . . Known Exits Taken 17 | . . . . . . 1 1 1 1 . . 1 1 1 1 1 . . 1 1 1 1 1 . . 1 1 1 . Unknown Exits Taken 8 | 1 1 1 1 1 1 . . . . 1 1 . . . . . . . . . . . . . . . . . . Scrap Searched 21 | . . 1 . 3 . . 2 1 3 . 3 . 1 4 . 2 . . . 1 . . . . . . . . . Spaces Dug 210 | . 4 . . . 20 1 7 13 4 1 . 21 . 5 . 3 36 . 40 . . . 1 34 . 8 2 5 5 Terrain Destroyed 565 | . 4 31 . 65 47 21 7 18 4 1 . 21 . 8 . 3 44 . 65 . . . 15 46 . 8 146 6 5 Melee 170 | . . . . . . 1 5 9 4 1 . 18 . 4 . 3 35 . 36 . . . 1 34 . 8 1 5 5 Projectile 105 | . 4 2 . . 35 1 2 9 . . . 3 . 4 . . 9 . 29 . . . . . . . 6 1 . AOE 290 | . . 29 . 65 12 19 . . . . . . . . . . . . . . . . 14 12 . . 139 . . Terrain Rammed . | . . . . . . . . . . . . . . . . . . . . . . . . . . . . . . Walls Destroyed . | . . . . . . . . . . . . . . . . . . . . . . . . . . . . . . Machines Disabled . | . . . . . . . . . . . . . . . . . . . . . . . . . . . . . . Actions | -11 -10 -10 -10 -9 -8 -7 -7 -7 -7 -7 -6 -6 -6 -6 -6 -5 -5 -5 -5 -5 -5 -5 -4 -4 -4 -4 -4 -3 -2 --------- Run | Scr Mat Min Exi Min Mat Fac Low Low Zio Dee Pro Fac Low Low Dat Pro Fac Was Fac Upp Upp War Pro Fac Was Fac Ext Res Res Total 25753 | 131 865 680 458 842 2057 770 488 698 1846 898 321 1470 383 479 136 578 1880 62 3902 207 257 701 316 2048 59 692 1193 603 733 Wait 3374 | 2 69 32 . 115 309 188 69 124 153 146 11 83 41 63 26 75 317 . 797 . . . 22 152 . 77 211 274 18 Move 20754 | 87 682 601 431 688 1535 452 405 528 1623 690 301 1296 329 401 97 496 1451 62 2894 207 256 669 292 1810 58 594 835 303 681 Hop 68 | . . . . . . 1 . . . . 2 6 4 . . 1 19 . 18 . 1 . . 10 . 1 3 2 . Pick Up 198 | 14 25 3 21 9 35 14 . 2 14 6 1 6 1 1 1 . 7 . 14 . . 5 . 9 . 5 . 3 2 Fast Attach 64 | . . . 1 . 8 1 . 3 15 10 . 6 . . . . 3 . 3 . . 7 . 1 . . . . 6 Attach 94 | 7 5 . . 2 8 15 . . 8 2 1 3 1 1 2 . 9 . 9 . . 6 . 4 . 2 1 5 3 Detach 23 | . . . . . . 1 . 2 2 1 . . 1 1 1 . 4 . 3 . . 2 . 1 . 1 . 2 1 Swap 223 | 2 24 6 2 5 32 24 2 10 1 3 . 15 2 4 3 3 11 . 42 . . . . 8 1 2 19 2 . Drop 170 | 1 12 1 3 7 31 19 . 5 22 13 . 9 . . 1 . 7 . 10 . . 12 . 8 . 2 . 5 2 Fire 350 | 18 46 37 . 15 95 50 7 11 . . . 3 . 4 . . 10 . 30 . . . 1 1 . . 21 1 . Melee 345 | . . . . . . 3 5 13 8 27 5 43 4 4 5 3 42 . 74 . . . 1 44 . 8 30 6 20 Ram . | . . . . . . . . . . . . . . . . . . . . . . . . . . . . . . Kick . | . . . . . . . . . . . . . . . . . . . . . . . . . . . . . . Crush 9 | . 2 . . 1 4 2 . . . . . . . . . . . . . . . . . . . . . . . Escape Stasis 37 | . . . . . . . . . . . . . . . . . . . 8 . . . . . . . 29 . . Rewire 44 | . . . . . . . . . . . . . . . . . . . . . . . . . . . 44 . . Trap . | . . . . . . . . . . . . . . . . . . . . . . . . . . . . . . Miscellaneous . | . . . . . . . . . . . . . . . . . . . . . . . . . . . . . . Route ------- -11/Scrapyard -10/Materials (discovered 3 exits: [*Mat x2] / [*Min]) -10/Mines (discovered 3 exits: [*Mat x2] / *Exi) -10/Exiles (discovered 2 exits: *Min x2) -9/Mines (discovered 2 exits: *Mat x2) -8/Materials (discovered 3 exits: *Fac x3) -7/Factory (discovered 3 exits: *Fac / *Low x2) -7/Lower Caves -7/Lower Caves (discovered 2 exits: *Fac / *Zio) -7/Zion (discovered 2 exits: *Dee / [*Pro]) -7/Deep Caves -6/Proximity Caves -6/Factory (discovered 3 exits: Fac / *Low x2) -6/Lower Caves -6/Lower Caves (discovered 2 exits: *Fac / *Dat) -6/Data Miner -5/Proximity Caves -5/Factory (discovered 3 exits: *Fac / Upp x2) -5/Waste -5/Factory (discovered 4 exits: *Fac x2 / *Upp x2) -5/Upper Caves -5/Upper Caves -5/Warlord -4/Proximity Caves -4/Factory (discovered 5 exits: Upp x2 / Ext x2 / Arm) -4/Waste -4/Factory (discovered 5 exits: Upp x2 / *Ext x2 / Arm) -4/Extension -3/Research (discovered 2 exits: *Res / [*Tes]) -2/Research (discovered 1 exit: Qua) History --------- Turn | Location | Event 19 | -11/Scrapyard | Discovered new exit (range 16) 151 | -11/Scrapyard | Entered Materials 317 | -10/Materials | Build established: Mutant 339 | -10/Materials | Discovered new exit (range 7) 364 | -10/Materials | Discovered new exit (range 13) 889 | -10/Materials | Discovered new exit (range 10) 1116 | -10/Materials | Repaired Grenade Launcher 1327 | -10/Materials | Entered Mines 1348 | -10/Mines | Build established: Hauler-Mutant 1375 | -10/Mines | Met a Derelict bent on vengeance 1392 | -10/Mines | Discovered new exit (range 13) 1804 | -10/Mines | Learned location of Storage (-9) 1856 | -10/Mines | Deemed a non-threat by the Exiles lab entrance 1856 | -10/Mines | Discovered new exit (range 5) 1876 | -10/Mines | Discovered new exit (range 11) 2083 | -10/Mines | Excavation squad dispatched 2083 | -10/Mines | A large section of the Mines collapsed 2565 | -10/Mines | Entered Exiles 2589 | -10/Exiles | Discovered new exit (range 15) 2610 | -10/Exiles | Met 8R-AWN 2639 | -10/Exiles | Met EX-HEX 2754 | -10/Exiles | Met EX-DEC 2788 | -10/Exiles | Learned location of Zion (-7) 2821 | -10/Exiles | Met EX-BIN 3026 | -10/Exiles | Discovered new exit (range 14) 3152 | -10/Exiles | Aligned with FarCom system 3154 | -10/Exiles | Given EX-Vault access code 3204 | -10/Exiles | Opened EX-Vault 3214 | -10/Exiles | Found Superbattery 3217 | -10/Exiles | Found Longsword +1 3246 | -10/Exiles | Warned to stay clear of 0b10 Research branches 3335 | -10/Exiles | Stole two prototypes: Superbattery, Longsword +1 3335 | -10/Exiles | Entered Mines 3335 | -9/Mines | Discovered new exit (range 11) 3450 | -9/Mines | Met a Derelict shopkeep closing up shop 3582 | -9/Mines | Discovered new exit (range 5) 4360 | -9/Mines | Joined a pair of Derelicts in attacking an 0b10 outpost 4762 | -9/Mines | Entered Materials 4762 | -8/Materials | Evolved 4 slots: Propulsion x1, Utility x3 5066 | -8/Materials | Discovered new exit (range 3) 6695 | -8/Materials | Discovered new exit (range 8) 6715 | -8/Materials | Central database locked down 6913 | -8/Materials | Repaired Med. Treads 7423 | -8/Materials | Discovered new exit (range 13) 7673 | -8/Materials | Repaired Broken Imp. VTOL Module 8248 | -8/Materials | Entered Factory 8248 | -7/Factory | Evolved 2 slots: Utility x2 8250 | -7/Factory | FarCom data flow suspended 8579 | -7/Factory | Build established: Hacker-Mutant 8812 | -7/Factory | Discovered new exit (range 9) 8860 | -7/Factory | Identified exit to Lower Caves 9129 | -7/Factory | Repaired Hvy. Ion Cannon 9186 | -7/Factory | Fabricated Imp. VTOL Module (x1) 9229 | -7/Factory | Fabricated Imp. VTOL Module (x1) 9330 | -7/Factory | Local fabrication network quarantined 9358 | -7/Factory | Entered Lower Caves 9389 | -7/Lower Caves | Encountered a Warlord checkpoint 9421 | -7/Lower Caves | Learned 8 Factory zone layouts 9425 | -7/Lower Caves | Learned Factory emergency access door positions 9538 | -7/Lower Caves | Build established: Sprinter 9570 | -7/Lower Caves | Discovered new exit (range 8) 9572 | -7/Lower Caves | Identified exit to Lower Caves 9572 | -7/Lower Caves | Entered another Lower Caves area 9580 | -7/Lower Caves | Discovered new exit (range 7) 9718 | -7/Lower Caves | Attracted the attention of an 0b10 checkpoint 9783 | -7/Lower Caves | Identified exit to Zion 9786 | -7/Lower Caves | Found Alien Artifact 9786 | -7/Lower Caves | Identified Core Expander 9786 | -7/Lower Caves | Installed Core Expander, added new Power slot 9923 | -7/Lower Caves | Entered Zion 9957 | -7/Zion | Discovered new exit (range 16) 10013 | -7/Zion | Gained Derelict followers 10021 | -7/Zion | Received a hallucinogenic algorithm 10035 | -7/Zion | Learned location of Data Miner (-6) 10041 | -7/Zion | Visited the Megawrench Repair Shop 10201 | -7/Zion | Discovered new exit (range 4) 10203 | -7/Zion | Saw the warning signs outside the Deep Caves entrance 10272 | -7/Zion | Found Prototype Processor 10272 | -7/Zion | Identified Exp. Core Analyzer 10274 | -7/Zion | Found Prototype Processor 10274 | -7/Zion | Identified Exp. Target Analyzer 10279 | -7/Zion | Found Prototype Processor 10279 | -7/Zion | Identified Exp. Armor Integrity Analyzer 10281 | -7/Zion | Found Prototype Processor 10281 | -7/Zion | Identified Exp. Targeting Computer 10452 | -7/Zion | Found Exp. Armor Integrity Analyzer 10514 | -7/Zion | Identified exit to Deep Caves 10638 | -7/Zion | Entered Deep Caves 10638 | -7/Deep Caves | Accompanied by 2 allies 10760 | -7/Deep Caves | Attacked by Z-Imprinter 10791 | -7/Deep Caves | Found Prototype Device 10791 | -7/Deep Caves | Identified Zio. Metafield Generator 10804 | -7/Deep Caves | Lost 3 parts (2p1u) 10876 | -7/Deep Caves | Found Prototype Protection 10877 | -7/Deep Caves | Identified Zio. Weapon Casing 10999 | -7/Deep Caves | Z-Facility disabled 11076 | -7/Deep Caves | Discovered new exit (range 6) 11078 | -7/Deep Caves | Entered Proximity Caves 11097 | -6/Proximity Caves | Spotted B-75 Beast 11101 | -6/Proximity Caves | Attracted the attention of an 0b10 checkpoint 11189 | -6/Proximity Caves | Discovered new exit (range 6) 11190 | -6/Proximity Caves | Entered Factory 11190 | -6/Factory | Evolved 2 slots: Propulsion x1, Utility x1 11191 | -6/Factory | Identified exit to Factory 11337 | -6/Factory | Identified exit to Lower Caves 11444 | -6/Factory | Build established: Hacker-Sprinter 11508 | -6/Factory | Spotted B-75 Beast 11521 | -6/Factory | Repaired Imp. Cesium-ion Thruster? 11574 | -6/Factory | Fabricated Exp. Sensor Array? 11693 | -6/Factory | Repaired Broken Exp. Heat Sink? 11756 | -6/Factory | Entered Lower Caves 11756 | -6/Lower Caves | Spotted AL-GHY(f) 11757 | -6/Lower Caves | Encountered a Master Thief 11757 | -6/Lower Caves | Spotted KA-HOC(f) 11758 | -6/Lower Caves | Encountered a Master Thief 11762 | -6/Lower Caves | Superbattery stolen by Master Thief 11766 | -6/Lower Caves | Encountered a Warlord checkpoint 11778 | -6/Lower Caves | Learned Factory terminal intel 11828 | -6/Lower Caves | Longsword +1 stolen by Master Thief 11859 | -6/Lower Caves | Discovered new exit (range 14) 11861 | -6/Lower Caves | Identified exit to Lower Caves 11861 | -6/Lower Caves | Entered another Lower Caves area 11868 | -6/Lower Caves | Discovered exit to Factory (range 15) 11933 | -6/Lower Caves | Attracted the attention of an 0b10 checkpoint 11933 | -6/Lower Caves | Learned location of Extension (-4) 11967 | -6/Lower Caves | Learned Factory machine intel 12011 | -6/Lower Caves | Discovered new exit (range 15) 12012 | -6/Lower Caves | Identified exit to Data Miner 12013 | -6/Lower Caves | Entered Data Miner 12013 | -6/Data Miner | Discovered new exit (range 6) 12016 | -6/Data Miner | Met Data Miner 12018 | -6/Data Miner | Learned location of Section 7 (-2) 12018 | -6/Data Miner | Acquired the access code to Warlord's prototype stash 12021 | -6/Data Miner | Received God Mode back door access code from Data Miner 12042 | -6/Data Miner | Data Conduit disabled 12071 | -6/Data Miner | Identified exit to Proximity Caves 12072 | -6/Data Miner | Entered Proximity Caves 12225 | -5/Proximity Caves | Discovered exit to Factory (range 10) 12227 | -5/Proximity Caves | Entered Factory 12227 | -5/Factory | Evolved 2 slots: Utility x2 12228 | -5/Factory | Loaded intel: 284 machine locations 12229 | -5/Factory | Loaded intel: 20 terminal locations 12273 | -5/Factory | Identified exit to Upper Caves 12403 | -5/Factory | Fabricated Exp. Utility Shielding? 12515 | -5/Factory | Fabricated Exp. Signal Interpreter? 12623 | -5/Factory | Local fabrication network quarantined 12729 | -5/Factory | Discovered new exit (range 3) 12729 | -5/Factory | Identified exit to Factory 13047 | -5/Factory | Manually triggered Chute Trap 13047 | -5/Factory | Sucked down chute 13047 | -5/Factory | Entered Waste 13051 | -5/Waste | Spotted C-40 Crusher 13051 | -5/Waste | Spotted C-40 Crusher 13053 | -5/Waste | Spotted C-40 Crusher 13054 | -5/Waste | Spotted C-40 Crusher 13054 | -5/Waste | Discovered new exit (range 14) 13055 | -5/Waste | Identified exit to Factory 13056 | -5/Waste | Entered Factory 13112 | -5/Factory | Spotted B-75 Beast 13680 | -5/Factory | Repaired Broken Mic. Fission Core? 13793 | -5/Factory | Repaired Cld. Cesium-ion Thruster? 13896 | -5/Factory | Fabricated Impulse Thruster Array? 14055 | -5/Factory | Fabricated Lgt. Regenerative Plating (x1) 14127 | -5/Factory | Discovered exit to Factory (range 5) 14208 | -5/Factory | Fabricated Mni. Smartbomb Launcher (x1) 14238 | -5/Factory | Crushed by falling debris 14513 | -5/Factory | Repaired Impulse Thruster Array 14594 | -5/Factory | Repaired Exp. Utility Shielding 14685 | -5/Factory | Repaired Kinetic Spear? 14699 | -5/Factory | Discovered exit to Factory (range 16) 14786 | -5/Factory | Fabricated Adv. System Shield? 14841 | -5/Factory | Local fabrication network quarantined 14846 | -5/Factory | Entered Upper Caves 14846 | -5/Upper Caves | Spotted 1B-8IC(f) 14846 | -5/Upper Caves | Spotted OT-Z9V(f) 14847 | -5/Upper Caves | Encountered a Master Thief 14847 | -5/Upper Caves | Encountered a Master Thief 14862 | -5/Upper Caves | Spotted B-75 Beast 14877 | -5/Upper Caves | Identified exit to Upper Caves 14892 | -5/Upper Caves | Entered another Upper Caves area 14900 | -5/Upper Caves | Learned Factory stockpile data 14901 | -5/Upper Caves | Learned location of Armory (-4) 14936 | -5/Upper Caves | Encountered a Warlord checkpoint 14946 | -5/Upper Caves | Spotted 83-RSG(f) 14949 | -5/Upper Caves | Spotted 3X-EKH(f) 14956 | -5/Upper Caves | Discovered new exit (range 7) 14956 | -5/Upper Caves | Spotted GN-NCE(f) 14957 | -5/Upper Caves | Encountered a Master Thief 14957 | -5/Upper Caves | Identified exit to Warlord 14957 | -5/Upper Caves | Entered Warlord 14962 | -5/Warlord | System corruption cleaned by Quarantine Array 14982 | -5/Warlord | Visited the Vortex Lab 14984 | -5/Warlord | Found Prototype Energy Gun 14984 | -5/Warlord | Identified Vortex Rail 14995 | -5/Warlord | Warlord's base attacked by MAIN.C 15045 | -5/Warlord | Met Warlord 15049 | -5/Warlord | Opened Warlord's prototype stash 15060 | -5/Warlord | Found Prototype Reactor 15062 | -5/Warlord | Found Prototype Device 15062 | -5/Warlord | Identified Exp. Phase Shifter 15065 | -5/Warlord | Found Prototype Hackware 15070 | -5/Warlord | Found Prototype Device 15070 | -5/Warlord | Identified System Purifier 15095 | -5/Warlord | Learned Quarantine trap positions 15095 | -5/Warlord | Learned 4 Armory zone layouts 15095 | -5/Warlord | Learned 4 Quarantine zone layouts 15095 | -5/Warlord | Learned Armory scanalyzer intel 15135 | -5/Warlord | Identified Vortex Chain Reactor 15141 | -5/Warlord | Opened side exit 15155 | -5/Warlord | Discovered new exit (range 8) 15157 | -5/Warlord | Identified exit to Proximity Caves 15157 | -5/Warlord | Entered Proximity Caves 15260 | -4/Proximity Caves | Discovered exit to Factory (range 10) 15263 | -4/Proximity Caves | Entered Factory 15263 | -4/Factory | Evolved 2 slots: Utility x2 15278 | -4/Factory | Identified Ghost Barrier 15290 | -4/Factory | Identified exit to Upper Caves 15290 | -4/Factory | Identified exit to Extension 15290 | -4/Factory | Identified exit to Armory 15364 | -4/Factory | Spotted B-86 Titan 15450 | -4/Factory | Spotted B-86 Titan 15507 | -4/Factory | Fabricated Inertial Stasis Machine? 15541 | -4/Factory | Fabricated Adv. Hacking Suite? 15589 | -4/Factory | Fabricated Adv. Hacking Suite? 15591 | -4/Factory | Build established: Wizard-Sprinter 15631 | -4/Factory | Fabricated Adv. Hacking Suite? 15798 | -4/Factory | Fabricated Lrg. Storage Unit? 15903 | -4/Factory | Fabricated Nanosword (x1) 15979 | -4/Factory | Sucked down chute 15979 | -4/Factory | Entered Waste 15980 | -4/Waste | Spotted C-40 Crusher 15983 | -4/Waste | Spotted C-40 Crusher 15984 | -4/Waste | Spotted C-40 Crusher 15986 | -4/Waste | Spotted C-40 Crusher 15987 | -4/Waste | Discovered new exit (range 16) 15988 | -4/Waste | Spotted C-40 Crusher 15989 | -4/Waste | Identified exit to Factory 15989 | -4/Waste | Entered Factory 16075 | -4/Factory | 1 allies followed down the chute 16087 | -4/Factory | Local fabrication network quarantined 16136 | -4/Factory | Repaired Exp. Sensor Array 16165 | -4/Factory | Fabricated Exp. Melee Analysis Suite (x1) 16190 | -4/Factory | Fabricated Adv. Reaction Control System (x1) 16259 | -4/Factory | Entered Extension 16259 | -4/Extension | Accompanied by 1 ally 17027 | -4/Extension | Build established: Wizard-Mutant 17234 | -4/Extension | Spotted B-86 Titan 17286 | -4/Extension | Allies destroyed B-86 Titan 17328 | -4/Extension | Spotted B-86 Titan 17340 | -4/Extension | Discovered new exit (range 2) 17341 | -4/Extension | Identified exit to Research 17341 | -4/Extension | Entered Research 17341 | -3/Research | Evolved 2 slots: Utility x2 17561 | -3/Research | Discovered new exit (range 20) 17732 | -3/Research | Discovered new exit (range 3) 17734 | -3/Research | Identified exit to Research 17735 | -3/Research | Entered another Research area 17735 | -2/Research | Warlord forces began assault on 0b10 17735 | -2/Research | Evolved 2 slots: Utility x2 17736 | -2/Research | Identified exit to Quarantine 17765 | -2/Research | Lost 6 parts (1n3u2w) 17845 | -2/Research | Research machine network offline 18007 | -2/Research | Spotted Striker 18007 | -2/Research | Spotted Striker 18008 | -2/Research | Borebot progress halted 18081 | -2/Research | Destroyed Striker 18112 | -2/Research | Lost 4 parts (1n3u) 18141 | -2/Research | Spotted Striker 18142 | -2/Research | Spotted Striker 18162 | -2/Research | Spotted Executioner 18164 | -2/Research | Spotted Executioner 18168 | -2/Research | Core integrity fell below 50% 18187 | -2/Research | Core integrity fell below 20% 18204 | -2/Research | Destroyed by S-43 Plague with Heavy Machine Gun Last Messages --------------- quadrant. 18145_ Impulse Thruster Array destroyed. 18156_ Knocked back. 18156_ Nanosword destroyed. 18162_ Penetrated by Slug. 18162_ Slug penetrates Wall. 18162_ Penetrated by Slug. 18162_ Slug penetrates Earth. 18164_ Slug penetrates Wall. 18165_ Penetrated by Slug. 18165_ Gyrokinetic Inverter destroyed. 18165_ Slug penetrates Earth. 18170_ Dropped Centrium Light Armor Plating. 18170_ Penetrated by Slug. 18171_ Adv. Hacking Suite destroyed. 18172_ Striker knocked back. 18174_ S-43 Plague knocked back. 18177_ W-44 Eye sends out distress signal. 18186_ Adv. Hacking Suite destroyed. 18202_ Exp. Energy Well destroyed. Map ----- +----------------------------------------------------+ | ?????????????????????????????????????????????????? | | ?????????????????????????????????????????????????? | | ?????????????????????????????????????????????????? | | ?????????????????????????????????????????????????? | | ?????????????????????????????????????????????????? | | ?????????????????????????????????????????????????? | | ?????????????????????????????????????????????????? | | ?????????????????????????????????????????????????? | | ?????????????????????????????????????????????????? | | ?????????????????????????????????????????????????? | | ?????????????????????????????????????????????????? | | ?????????????????????????????????????????????????? | | ?????????????????????????????????????????????????? | | ?????????????????????????????????????????????????? | | ?????????????????????????????????????????????????? | | ????????????????????????##############???????????? | | ????????????????????????# #???????????? | | ????????????????????????# * #???????????? | | ????????? ??????????????# !!! #???????????? | | ??????# ?????????????# !! s #???????????? | | ??????# ?????????????# K!! s #???????????? | | ??????# ?????????????# s #???????????? | | ??????# ?############# #???????????? | | ??????# ?# ! #K """"""" #???????????? | | ??????# ?? = # s """"""" #???????????? | | ??????+ ???? #@ s""""""" #???????????? | | ??????# #????? # ! #??????????## | | ??????# #??????? # #???######## | | ??????# ##########+########+#######???# # | | ??????# ########## # | | ??????# # | | ??????# += | | ??????# ######### # | | ??????# ### ############+#####???????# # | | ??????# # #????????????????????## ## | | ??????# # #?????????????????????# ## | | ??????# # " #?????????????????????# ### | | ??" ??# # "" #?????????????######### #?? | | """??# # G #?????????? / #?? | | F" ?+ + "" #?????????????######### #?? | | """ ?# # " ! #?????????????????????# #?? | | "" # # #?????????????????????# #?? | | # # = * #?????????????????????# #?? | | ### ######?????????????????????# ### | | ##### # ## #???????????????????????????# | | ????# # #???????????????????????????# ### | | ##### # #########???????????????????# #?? | | """ #???????????????????# #?? | | "T" #??#?????????????????# #?? | | ! # " " ## #?????????????????# #?? | +----------------------------------------------------+ Best States ------------- Heat Dissipation 66 Energy Generation 55 Energy Capacity 2220 Matter Stores 300 Matter Capacity 300 Sight Range 23 Robot Scan Range 30 Terrain Scan Density 10 Additional Mass Support 16 Armor Coverage 400 Utility Shielding 90 Weapon Shielding 100 Phase Shifting 20 Evasion (%) 87 Targeting Accuracy 8 Melee Accuracy 12 Target Analysis 12 Core Analysis 15 Armor Integrity Analysis 90 Recoil Reduction 3 Offensive Hacking 56 Defensive Hacking 48 Item Schematics ----------------- Imp. VTOL Module | -8/Materials | Scanalyzed Hcp. Storage Unit | -8/Materials | Scanalyzed Adv. Signal Interpreter | -8/Materials | Scanalyzed Med. Storage Unit | -8/Materials | Scanalyzed Hacking Suite | -7/Factory | Scanalyzed Nanoactuators | -6/Factory | Hacked Imp. System Backup Module | -6/Factory | Hacked Imp. System Shield | -6/Factory | Hacked Imp. Hacking Suite | -6/Factory | Hacked Exp. Sensor Array | -6/Factory | Hacked Imp. Phase Shifter | -6/Factory | Hacked Exp. Armor Integrity Analyzer | -6/Factory | Scanalyzed Exp. Heat Sink | -6/Factory | Scanalyzed Imp. Utility Shielding | -6/Factory | Scanalyzed Combat Drone Bay | -6/Data Miner | Free Lgt. Regenerative Plating | -6/Data Miner | Free Cmb. Gravmag System | -6/Data Miner | Free Exp. Cesium-ion Thruster | -6/Data Miner | Free Exp. Terrain Scanner | -6/Data Miner | Free Exp. Terrain Scan Processor | -6/Data Miner | Free Exp. Transmission Jammer | -6/Data Miner | Free Cloaking Device | -6/Data Miner | Free Exp. Utility Shielding | -5/Factory | Hacked Exp. Signal Interpreter | -5/Factory | Hacked Adv. Hacking Suite | -5/Factory | Hacked Adv. System Shield | -5/Factory | Hacked Force Lance | -5/Factory | Hacked Gravity Neutralizing Apparatus | -5/Factory | Hacked Exp. Power Shielding | -5/Factory | Hacked Exp. Propulsion Shielding | -5/Factory | Hacked Impulse Thruster Array | -5/Factory | Hacked Mic. Fission Core | -5/Factory | Scanalyzed Mni. Smartbomb Launcher | -5/Factory | Hacked Lgt. Quantum Reactor | -4/Factory | Hacked Adv. Melee Analysis Suite | -4/Factory | Scanalyzed Inertial Stasis Machine | -4/Factory | Hacked Lrg. Storage Unit | -4/Factory | Hacked Nanosword | -4/Factory | Hacked Adv. Reaction Control System | -4/Factory | Hacked Exp. Melee Analysis Suite | -4/Factory | Hacked Vortex Chain Reactor | -2/Research | Hacked Robot Schematics ------------------ S-27 Virus | -6/Data Miner | Free G-50 Soldier | -6/Data Miner | Free G-67 Veteran | -6/Data Miner | Free H-66 Slayer | -6/Data Miner | Free I-36 Angel | -6/Data Miner | Free I-47 Archangel | -6/Data Miner | Free Fabricated ------------ Imp. VTOL Module | x1 | -7/Factory Imp. VTOL Module | x1 | -7/Factory Exp. Sensor Array | x1 | -6/Factory Exp. Utility Shielding | x1 | -5/Factory Exp. Signal Interpreter | x1 | -5/Factory Impulse Thruster Array | x1 | -5/Factory Lgt. Regenerative Plating | x1 | -5/Factory Mni. Smartbomb Launcher | x1 | -5/Factory Adv. System Shield | x1 | -5/Factory Inertial Stasis Machine | x1 | -4/Factory Adv. Hacking Suite | x1 | -4/Factory Adv. Hacking Suite | x1 | -4/Factory Adv. Hacking Suite | x1 | -4/Factory Lrg. Storage Unit | x1 | -4/Factory Nanosword | x1 | -4/Factory Exp. Melee Analysis Suite | x1 | -4/Factory Adv. Reaction Control System | x1 | -4/Factory Alien Tech Used ----------------- Core Expander Achievements -------------- None Challenges ------------ None Game ------ Seed WeldingWarpNullifier Manual? 0 Play Time 08:16:32 Cumulative 299.3 hours Start 2021.02.07 @ 22:52:50 End 2021.02.08 @ 15:47:16 Sessions 7 Manual Loads 0 Difficulty Rogue Special Mode None Game No. 106 Rogue 102 Adventurer 4 Explorer 0 Win Type - Total 4 Types 3/0/1/0/0/0/0/0/0 Lore% 68 Gallery% 76 Achievement% 62 Wizard Run 0 Options --------- ASCII 1 Keyboard 0 Movement Arrows Keybinds 0 Fullscreen 1 Font 18/Smallcaps Map View 76x50 Tactical HUD 1 Map Filters NONE Filters NONE Steam 1 RUN: 8f8b9118-fc57-41a2-8181-ac896583ca81